[Event "Titled Tuesday Blitz March 29 Early 2022"]
[White "Dovbnia, Nikita"]
[Black "Migot, Tangi"]
[WhiteFideId "54104599"]
[BlackFideId "662445"]
[WhiteElo "2111"]
[BlackElo "2533"]
[Result "0-1"]
[Round "01"]
[TimeControl "180+1"]
[Date "2022.03.30"]
[WhiteClock "0:00:33"]
[BlackClock "0:00:10"]

1. Nf3 {[%clk 0:02:51]}  e6 {[%clk 0:03:00]} 2. b3 {[%clk 0:02:51]}  b6 {[%clk 0:02:59]} 3. Bb2 {[%clk 0:02:52]}  Bb7 {[%clk 0:02:59]} 4. c4 {[%clk 0:02:52]}  Nf6 {[%clk 0:02:59]} 5. g3 {[%clk 0:02:53]}  Be7 {[%clk 0:03:00]} 6. Bg2 {[%clk 0:02:53]}  O-O {[%clk 0:03:00]} 7. O-O {[%clk 0:02:54]}  c5 {[%clk 0:03:00]} 8. d4 {[%clk 0:02:45]}  cxd4 {[%clk 0:03:00]} 9. Nxd4 {[%clk 0:02:46]}  Bxg2 {[%clk 0:03:00]} 10. Kxg2 {[%clk 0:02:47]}  Qc8 {[%clk 0:03:00]} 11. Nd2 {[%clk 0:02:46]}  Qb7+ {[%clk 0:02:59]} 12. N2f3 {[%clk 0:02:45]}  d5 {[%clk 0:02:55]} 13. cxd5 {[%clk 0:02:45]}  Qxd5 {[%clk 0:02:54]} 14. Kg1 {[%clk 0:02:45]}  Nc6 {[%clk 0:02:51]} 15. Nxc6 {[%clk 0:02:38]}  Qxc6 {[%clk 0:02:52]} 16. Rc1 {[%clk 0:02:39]}  Qb7 {[%clk 0:02:52]} 17. Qd3 {[%clk 0:02:38]}  Rfd8 {[%clk 0:02:48]} 18. Qb1 {[%clk 0:02:38]}  Ne4 {[%clk 0:02:35]} 19. Rfd1 {[%clk 0:02:37]}  Rac8 {[%clk 0:02:25]} 20. Rxd8+ {[%clk 0:02:35]}  Rxd8 {[%clk 0:02:24]} 21. Rd1 {[%clk 0:02:36]}  Rxd1+ {[%clk 0:02:17]} 22. Qxd1 {[%clk 0:02:36]}  f6 {[%clk 0:02:14]} 23. Kf1 {[%clk 0:02:27]}  Ng5 {[%clk 0:02:03]} 24. Qd3 {[%clk 0:02:21]}  Qc6 {[%clk 0:01:48]} 25. h4 {[%clk 0:02:21]}  Nxf3 {[%clk 0:01:46]} 26. exf3 {[%clk 0:02:21]}  b5 {[%clk 0:01:37]} 27. Kg2 {[%clk 0:02:21]}  a5 {[%clk 0:01:33]} 28. h5 {[%clk 0:02:17]}  a4 {[%clk 0:01:32]} 29. bxa4 {[%clk 0:02:14]}  bxa4 {[%clk 0:01:32]} 30. g4 {[%clk 0:02:14]}  h6 {[%clk 0:01:12]} 31. Qg6 {[%clk 0:02:12]}  Kf8 {[%clk 0:01:07]} 32. Qd3 {[%clk 0:02:08]}  Bd6 {[%clk 0:00:57]} 33. Bc3 {[%clk 0:02:05]}  Be7 {[%clk 0:00:53]} 34. Bd2 {[%clk 0:02:04]}  e5 {[%clk 0:00:49]} 35. Be3 {[%clk 0:02:03]}  Qe6 {[%clk 0:00:46]} 36. Qc2 {[%clk 0:01:56]}  a3 {[%clk 0:00:44]} 37. Kh3 {[%clk 0:01:50]}  Qd5 {[%clk 0:00:41]} 38. Kg3 {[%clk 0:01:48]}  Kf7 {[%clk 0:00:38]} 39. Qg6+ {[%clk 0:01:45]}  Kg8 {[%clk 0:00:33]} 40. Qe8+ {[%clk 0:01:44]}  Bf8 {[%clk 0:00:31]} 41. Qb8 {[%clk 0:01:33]}  e4 {[%clk 0:00:22]} 42. fxe4 {[%clk 0:01:29]}  Qxe4 {[%clk 0:00:19]} 43. Bc5 {[%clk 0:01:30]}  Qe5+ {[%clk 0:00:15]} 44. Qxe5 {[%clk 0:01:29]}  fxe5 {[%clk 0:00:16]} 45. Bxf8 {[%clk 0:01:29]}  Kxf8 {[%clk 0:00:17]} 46. Kf3 {[%clk 0:00:57]}  Kf7 {[%clk 0:00:17]} 47. Ke4 {[%clk 0:00:57]}  Kf6 {[%clk 0:00:15]} 48. f3 {[%clk 0:00:44]}  Ke6 {[%clk 0:00:14]} 49. Ke3 {[%clk 0:00:44]}  Kd5 {[%clk 0:00:13]} 50. Kd3 {[%clk 0:00:45]}  Kc5 {[%clk 0:00:11]} 51. Ke4 {[%clk 0:00:45]}  Kc4 {[%clk 0:00:11]} 52. Kxe5 {[%clk 0:00:44]}  Kc3 {[%clk 0:00:11]} 53. g5 {[%clk 0:00:41]}  hxg5 {[%clk 0:00:06]} 54. Kf5 {[%clk 0:00:31]}  Kb2 {[%clk 0:00:07]} 55. Kg6 {[%clk 0:00:32]}  Kxa2 {[%clk 0:00:07]} 56. Kxg7 {[%clk 0:00:33]}  Kb1 {[%clk 0:00:07]} 57. h6 {[%clk 0:00:33]}  a2 {[%clk 0:00:07]} 58. h7 {[%clk 0:00:34]}  a1=Q+ {[%clk 0:00:08]} 59. Kg8 {[%clk 0:00:34]}  Qa8+ {[%clk 0:00:07]} 60. Kg7 {[%clk 0:00:34]}  Qxf3 {[%clk 0:00:07]} 61. h8=Q {[%clk 0:00:31]}  Qc3+ {[%clk 0:00:08]} 62. Kh7 {[%clk 0:00:32]}  Qxh8+ {[%clk 0:00:08]} 63. Kxh8 {[%clk 0:00:33]}  g4 {[%clk 0:00:09]} 64. Kh7 {[%clk 0:00:33]}  g3 {[%clk 0:00:10]} 0-1


[Site "https://www.chess.com"]

[Event "Titled Tuesday Blitz March 29 Early 2022"]
[White "Dushyant Sharma"]
[Black "Papasimakopoulos, Alexandros"]
[WhiteFideId "25065130"]
[BlackFideId "4244125"]
[WhiteElo "2105"]
[BlackElo "2340"]
[Result "1/2-1/2"]
[Round "01"]
[TimeControl "180+1"]
[Date "2022.03.30"]
[WhiteClock "0:00:10"]
[BlackClock "0:00:03"]

1. e4 {[%clk 0:02:59]}  e6 {[%clk 0:02:48]} 2. d4 {[%clk 0:02:59]}  d5 {[%clk 0:02:47]} 3. exd5 {[%clk 0:03:00]}  exd5 {[%clk 0:02:47]} 4. Bd3 {[%clk 0:03:01]}  Nc6 {[%clk 0:02:46]} 5. Nf3 {[%clk 0:02:59]}  Bg4 {[%clk 0:02:45]} 6. c3 {[%clk 0:02:58]}  Bd6 {[%clk 0:02:45]} 7. O-O {[%clk 0:02:58]}  Nge7 {[%clk 0:02:44]} 8. Be3 {[%clk 0:02:59]}  Qd7 {[%clk 0:02:43]} 9. Nbd2 {[%clk 0:02:59]}  f6 {[%clk 0:02:42]} 10. b4 {[%clk 0:02:58]}  Bf5 {[%clk 0:02:42]} 11. Bxf5 {[%clk 0:02:51]}  Qxf5 {[%clk 0:02:40]} 12. a4 {[%clk 0:02:42]}  g5 {[%clk 0:02:30]} 13. a5 {[%clk 0:02:29]}  a6 {[%clk 0:02:29]} 14. Rb1 {[%clk 0:02:28]}  Qd3 {[%clk 0:02:22]} 15. Qb3 {[%clk 0:02:12]}  h5 {[%clk 0:02:08]} 16. Rbd1 {[%clk 0:01:21]}  h4 {[%clk 0:02:01]} 17. Ne1 {[%clk 0:00:51]}  Qf5 {[%clk 0:01:43]} 18. Qb1 {[%clk 0:00:46]}  Kf7 {[%clk 0:01:34]} 19. Qxf5 {[%clk 0:00:40]}  Nxf5 {[%clk 0:01:34]} 20. Nd3 {[%clk 0:00:41]}  Rae8 {[%clk 0:01:31]} 21. Rde1 {[%clk 0:00:39]}  Na7 {[%clk 0:01:26]} 22. Nb3 {[%clk 0:00:34]}  Nb5 {[%clk 0:01:18]} 23. Bd2 {[%clk 0:00:35]}  b6 {[%clk 0:01:12]} 24. f3 {[%clk 0:00:29]}  Rxe1 {[%clk 0:01:00]} 25. Rxe1 {[%clk 0:00:26]}  Ra8 {[%clk 0:00:57]} 26. f4 {[%clk 0:00:23]}  g4 {[%clk 0:00:52]} 27. Kf2 {[%clk 0:00:19]}  g3+ {[%clk 0:00:45]} 28. hxg3 {[%clk 0:00:18]}  Nxg3 {[%clk 0:00:45]} 29. Kf3 {[%clk 0:00:19]}  Ne4 {[%clk 0:00:44]} 30. Rxe4 {[%clk 0:00:13]}  dxe4+ {[%clk 0:00:44]} 31. Kxe4 {[%clk 0:00:14]}  Rg8 {[%clk 0:00:42]} 32. Kf3 {[%clk 0:00:11]}  Rg3+ {[%clk 0:00:42]} 33. Ke4 {[%clk 0:00:12]}  f5+ {[%clk 0:00:37]} 34. Kxf5 {[%clk 0:00:11]}  Rxd3 {[%clk 0:00:38]} 35. axb6 {[%clk 0:00:10]}  cxb6 {[%clk 0:00:35]} 36. Kg4 {[%clk 0:00:10]}  Nxc3 {[%clk 0:00:33]} 37. Bxc3 {[%clk 0:00:11]}  Rxc3 {[%clk 0:00:33]} 38. Nd2 {[%clk 0:00:12]}  Rd3 {[%clk 0:00:33]} 39. Ne4 {[%clk 0:00:12]}  Rxd4 {[%clk 0:00:33]} 40. Ng5+ {[%clk 0:00:12]}  Kg6 {[%clk 0:00:33]} 41. Ne6 {[%clk 0:00:12]}  Rxb4 {[%clk 0:00:27]} 42. Kxh4 {[%clk 0:00:12]}  Rxf4+ {[%clk 0:00:27]} 43. g4 {[%clk 0:00:11]}  Rf3 {[%clk 0:00:21]} 44. Ng5 {[%clk 0:00:09]}  Bg3+ {[%clk 0:00:18]} 45. Kh3 {[%clk 0:00:07]}  Bf4+ {[%clk 0:00:18]} 46. Nxf3 {[%clk 0:00:05]}  Kf6 {[%clk 0:00:17]} 47. Kh4 {[%clk 0:00:04]}  b5 {[%clk 0:00:16]} 48. g5+ {[%clk 0:00:05]}  Kf5 {[%clk 0:00:11]} 49. Nd4+ {[%clk 0:00:03]}  Ke4 {[%clk 0:00:09]} 50. Ne6 {[%clk 0:00:03]}  Be5 {[%clk 0:00:08]} 51. g6 {[%clk 0:00:03]}  Kd5 {[%clk 0:00:08]} 52. Nc7+ {[%clk 0:00:02]}  Kc6 {[%clk 0:00:04]} 53. Nxa6 {[%clk 0:00:02]}  Kb6 {[%clk 0:00:04]} 54. Nb4 {[%clk 0:00:03]}  Bg7 {[%clk 0:00:03]} 55. Kg5 {[%clk 0:00:03]}  Kc5 {[%clk 0:00:04]} 56. Nd3+ {[%clk 0:00:03]}  Kc4 {[%clk 0:00:04]} 57. Nf4 {[%clk 0:00:04]}  b4 {[%clk 0:00:03]} 58. Ne6 {[%clk 0:00:04]}  Ba1 {[%clk 0:00:03]} 59. Nd8 {[%clk 0:00:01]}  b3 {[%clk 0:00:03]} 60. Nc6 {[%clk 0:00:02]}  b2 {[%clk 0:00:01]} 61. Na5+ {[%clk 0:00:03]}  Kc3 {[%clk 0:00:01]} 62. Nc6 {[%clk 0:00:04]}  b1=Q {[%clk 0:00:02]} 63. Ne5 {[%clk 0:00:04]}  Kb2 {[%clk 0:00:03]} 64. Nf3 {[%clk 0:00:05]}  Qg1+ {[%clk 0:00:04]} 65. Nxg1 {[%clk 0:00:05]}  Kc2 {[%clk 0:00:04]} 66. Nf3 {[%clk 0:00:06]}  Kd3 {[%clk 0:00:05]} 67. Ne5+ {[%clk 0:00:07]}  Bxe5 {[%clk 0:00:05]} 68. Kf5 {[%clk 0:00:07]}  Bc3 {[%clk 0:00:05]} 69. Ke6 {[%clk 0:00:08]}  Ke4 {[%clk 0:00:05]} 70. Kf7 {[%clk 0:00:09]}  Kf5 {[%clk 0:00:03]} 71. g7 {[%clk 0:00:10]}  Bxg7 {[%clk 0:00:03]} 1/2-1/2


[Site "https://www.chess.com"]

[Event "Titled Tuesday Blitz March 29 Early 2022"]
[White "Fajdetic, Hrvoje"]
[Black "Koellner, Ruben Gideon"]
[WhiteFideId "14501945"]
[BlackFideId "12993093"]
[WhiteElo "2172"]
[BlackElo "2555"]
[Result "0-1"]
[Round "01"]
[TimeControl "180+1"]
[Date "2022.03.30"]
[WhiteClock "0:00:06"]
[BlackClock "0:01:03"]

1. d4 {[%clk 0:02:58]}  e6 {[%clk 0:02:56]} 2. Bf4 {[%clk 0:02:57]}  Nf6 {[%clk 0:02:55]} 3. e3 {[%clk 0:02:57]}  c5 {[%clk 0:02:50]} 4. Nd2 {[%clk 0:02:56]}  Nc6 {[%clk 0:02:50]} 5. Nc4 {[%clk 0:02:55]}  cxd4 {[%clk 0:02:42]} 6. exd4 {[%clk 0:02:54]}  d6 {[%clk 0:02:41]} 7. a4 {[%clk 0:02:50]}  Be7 {[%clk 0:02:37]} 8. c3 {[%clk 0:02:49]}  O-O {[%clk 0:02:37]} 9. Bd3 {[%clk 0:02:48]}  b6 {[%clk 0:02:37]} 10. Nf3 {[%clk 0:02:42]}  Bb7 {[%clk 0:02:37]} 11. h4 {[%clk 0:02:40]}  Nd5 {[%clk 0:02:31]} 12. Bg5 {[%clk 0:02:13]}  h6 {[%clk 0:02:29]} 13. Bd2 {[%clk 0:01:57]}  f5 {[%clk 0:02:15]} 14. Qe2 {[%clk 0:01:53]}  Qd7 {[%clk 0:02:15]} 15. O-O {[%clk 0:01:49]}  Rae8 {[%clk 0:02:15]} 16. Rae1 {[%clk 0:01:42]}  Bf6 {[%clk 0:02:14]} 17. g3 {[%clk 0:01:34]}  e5 {[%clk 0:02:10]} 18. dxe5 {[%clk 0:00:53]}  dxe5 {[%clk 0:02:11]} 19. Bc2 {[%clk 0:00:47]}  e4 {[%clk 0:02:05]} 20. Nh2 {[%clk 0:00:44]}  Ne5 {[%clk 0:01:42]} 21. Nxe5 {[%clk 0:00:43]}  Bxe5 {[%clk 0:01:43]} 22. Bb3 {[%clk 0:00:43]}  Kh7 {[%clk 0:01:42]} 23. Rd1 {[%clk 0:00:42]}  Qc7 {[%clk 0:01:38]} 24. Rfe1 {[%clk 0:00:36]}  Nf6 {[%clk 0:01:29]} 25. Bc2 {[%clk 0:00:34]}  Bc6 {[%clk 0:01:20]} 26. Nf1 {[%clk 0:00:33]}  Bb7 {[%clk 0:01:14]} 27. Ne3 {[%clk 0:00:33]}  Qc8 {[%clk 0:01:14]} 28. Ng2 {[%clk 0:00:25]}  Ba6 {[%clk 0:01:12]} 29. Qe3 {[%clk 0:00:21]}  Ng4 {[%clk 0:01:11]} 30. Qf4 {[%clk 0:00:11]}  Bxf4 {[%clk 0:01:10]} 31. Nxf4 {[%clk 0:00:12]}  Qc5 {[%clk 0:01:07]} 32. Nh3 {[%clk 0:00:08]}  e3 {[%clk 0:01:04]} 33. fxe3 {[%clk 0:00:08]}  Nxe3 {[%clk 0:01:05]} 34. Bxe3 {[%clk 0:00:07]}  Rxe3 {[%clk 0:01:06]} 35. Kh2 {[%clk 0:00:06]}  Rfe8 {[%clk 0:01:03]} 0-1


[Site "https://www.chess.com"]

[Event "Titled Tuesday Blitz March 29 Early 2022"]
[White "Fedoseev, Vladimir"]
[Black "Plotnikov, Pavel"]
[WhiteFideId "24130737"]
[BlackFideId "4170342"]
[WhiteElo "2726"]
[BlackElo "2298"]
[Result "1-0"]
[Round "01"]
[TimeControl "180+1"]
[Date "2022.03.29"]
[WhiteClock "0:01:04"]
[BlackClock "0:00:01"]

1. e4 {[%clk 0:02:59]}  e6 {[%clk 0:02:59]} 2. d4 {[%clk 0:02:59]}  d5 {[%clk 0:03:00]} 3. e5 {[%clk 0:02:59]}  Ne7 {[%clk 0:02:59]} 4. Nf3 {[%clk 0:02:57]}  c5 {[%clk 0:02:59]} 5. dxc5 {[%clk 0:02:55]}  Nbc6 {[%clk 0:02:56]} 6. c3 {[%clk 0:02:53]}  Ng6 {[%clk 0:02:51]} 7. Be3 {[%clk 0:02:52]}  Ngxe5 {[%clk 0:02:51]} 8. Nxe5 {[%clk 0:02:51]}  Nxe5 {[%clk 0:02:52]} 9. Nd2 {[%clk 0:02:51]}  Qc7 {[%clk 0:02:46]} 10. b4 {[%clk 0:02:43]}  Be7 {[%clk 0:02:40]} 11. Bb5+ {[%clk 0:02:32]}  Bd7 {[%clk 0:02:39]} 12. Bxd7+ {[%clk 0:02:32]}  Qxd7 {[%clk 0:02:35]} 13. O-O {[%clk 0:02:31]}  O-O {[%clk 0:02:34]} 14. a4 {[%clk 0:02:29]}  a5 {[%clk 0:02:11]} 15. Bd4 {[%clk 0:02:28]}  Nc6 {[%clk 0:01:58]} 16. b5 {[%clk 0:02:28]}  Nxd4 {[%clk 0:01:58]} 17. cxd4 {[%clk 0:02:29]}  e5 {[%clk 0:01:56]} 18. Rc1 {[%clk 0:02:21]}  Rfc8 {[%clk 0:01:41]} 19. Nf3 {[%clk 0:02:16]}  e4 {[%clk 0:01:34]} 20. c6 {[%clk 0:02:16]}  bxc6 {[%clk 0:01:28]} 21. Ne5 {[%clk 0:02:16]}  Qe6 {[%clk 0:01:27]} 22. Nxc6 {[%clk 0:02:15]}  Bd6 {[%clk 0:01:22]} 23. Qh5 {[%clk 0:02:14]}  g6 {[%clk 0:01:18]} 24. Qh4 {[%clk 0:01:59]}  Kg7 {[%clk 0:01:10]} 25. Rc3 {[%clk 0:01:57]}  h6 {[%clk 0:00:48]} 26. Rfc1 {[%clk 0:01:49]}  g5 {[%clk 0:00:43]} 27. Qh5 {[%clk 0:01:47]}  Rc7 {[%clk 0:00:38]} 28. g3 {[%clk 0:01:41]}  f5 {[%clk 0:00:34]} 29. h4 {[%clk 0:01:33]}  g4 {[%clk 0:00:23]} 30. Nd8 {[%clk 0:01:30]}  Rxd8 {[%clk 0:00:16]} 31. Rxc7+ {[%clk 0:01:30]}  Bxc7 {[%clk 0:00:15]} 32. Rxc7+ {[%clk 0:01:31]}  Rd7 {[%clk 0:00:16]} 33. Rc6 {[%clk 0:01:28]}  Rd6 {[%clk 0:00:13]} 34. Rxd6 {[%clk 0:01:28]}  Qxd6 {[%clk 0:00:13]} 35. Qxf5 {[%clk 0:01:29]}  e3 {[%clk 0:00:12]} 36. Qxg4+ {[%clk 0:01:27]}  Kh8 {[%clk 0:00:12]} 37. fxe3 {[%clk 0:01:23]}  Qa3 {[%clk 0:00:12]} 38. Qc8+ {[%clk 0:01:19]}  Kg7 {[%clk 0:00:11]} 39. Qc7+ {[%clk 0:01:19]}  Kh8 {[%clk 0:00:11]} 40. Qe5+ {[%clk 0:01:19]}  Kh7 {[%clk 0:00:12]} 41. Qf5+ {[%clk 0:01:14]}  Kg7 {[%clk 0:00:11]} 42. Qg4+ {[%clk 0:01:12]}  Kh8 {[%clk 0:00:10]} 43. Qf4 {[%clk 0:01:11]}  Qc1+ {[%clk 0:00:08]} 44. Kg2 {[%clk 0:01:11]}  Qc2+ {[%clk 0:00:07]} 45. Kh3 {[%clk 0:01:11]}  Qxa4 {[%clk 0:00:07]} 46. Qxh6+ {[%clk 0:01:09]}  Kg8 {[%clk 0:00:06]} 47. Qg5+ {[%clk 0:01:09]}  Kh7 {[%clk 0:00:06]} 48. Qf5+ {[%clk 0:01:08]}  Kh8 {[%clk 0:00:06]} 49. Qc8+ {[%clk 0:01:08]}  Kh7 {[%clk 0:00:06]} 50. Qc7+ {[%clk 0:01:07]}  Kh8 {[%clk 0:00:06]} 51. b6 {[%clk 0:01:07]}  Qd1 {[%clk 0:00:05]} 52. Qe5+ {[%clk 0:01:05]}  Kh7 {[%clk 0:00:05]} 53. Qf5+ {[%clk 0:01:05]}  Kh6 {[%clk 0:00:05]} 54. b7 {[%clk 0:01:03]}  Qh1+ {[%clk 0:00:04]} 55. Kg4 {[%clk 0:01:03]}  Qd1+ {[%clk 0:00:04]} 56. Qf3 {[%clk 0:01:04]}  Qd3 {[%clk 0:00:02]} 57. Qf4+ {[%clk 0:01:04]}  Kh7 {[%clk 0:00:01]} 58. b8=Q {[%clk 0:01:04]}  Qg6+ {[%clk 0:00:01]} 59. Kh3 {[%clk 0:01:04]}  Qe6+ {[%clk 0:00:01]} 60. Qg4 {[%clk 0:01:04]} 1-0


[Site "https://www.chess.com"]

[Event "Titled Tuesday Blitz March 29 Early 2022"]
[White "Ferreira, Vitor Hugo Vieira"]
[Black "Timofeev, Artyom"]
[WhiteFideId "2119765"]
[BlackFideId "4140419"]
[WhiteElo "2165"]
[BlackElo "2594"]
[Result "0-1"]
[Round "01"]
[TimeControl "180+1"]
[Date "2022.03.29"]
[WhiteClock "0:01:33"]
[BlackClock "0:02:42"]

1. Nf3 {[%clk 0:01:55]}  c5 {[%clk 0:02:58]} 2. g3 {[%clk 0:01:55]}  g6 {[%clk 0:02:58]} 3. Bg2 {[%clk 0:01:56]}  Bg7 {[%clk 0:02:58]} 4. O-O {[%clk 0:01:57]}  Nc6 {[%clk 0:02:58]} 5. c4 {[%clk 0:01:57]}  e5 {[%clk 0:02:58]} 6. Nc3 {[%clk 0:01:56]}  Nge7 {[%clk 0:02:58]} 7. d3 {[%clk 0:01:57]}  O-O {[%clk 0:02:58]} 8. a3 {[%clk 0:01:57]}  a6 {[%clk 0:02:56]} 9. Rb1 {[%clk 0:01:58]}  Rb8 {[%clk 0:02:56]} 10. b4 {[%clk 0:01:57]}  cxb4 {[%clk 0:02:56]} 11. axb4 {[%clk 0:01:58]}  b5 {[%clk 0:02:56]} 12. cxb5 {[%clk 0:01:56]}  axb5 {[%clk 0:02:56]} 13. Ne1 {[%clk 0:01:54]}  d5 {[%clk 0:02:55]} 14. Nc2 {[%clk 0:01:53]}  Be6 {[%clk 0:02:53]} 15. Bd2 {[%clk 0:01:43]}  Qd7 {[%clk 0:02:52]} 16. Qc1 {[%clk 0:01:42]}  Rfc8 {[%clk 0:02:50]} 17. Bh6 {[%clk 0:01:41]}  Nd4 {[%clk 0:02:45]} 18. Bd2 {[%clk 0:01:33]}  Rxc3 {[%clk 0:02:42]} 19. Bxc3 {[%clk 0:01:33]}  Nxe2+ {[%clk 0:02:42]} 0-1


[Site "https://www.chess.com"]

[Event "Titled Tuesday Blitz March 29 Early 2022"]
[White "Fiol, Fabrice"]
[Black "Kosteniuk, Alexandra"]
[WhiteFideId "611670"]
[BlackFideId "4128125"]
[WhiteElo "2432"]
[BlackElo "2469"]
[Result "0-1"]
[Round "01"]
[TimeControl "180+1"]
[Date "2022.03.30"]
[WhiteClock "0:01:20"]
[BlackClock "0:01:25"]

1. e4 {[%clk 0:02:59]}  c6 {[%clk 0:02:59]} 2. Nf3 {[%clk 0:02:59]}  d5 {[%clk 0:02:59]} 3. d3 {[%clk 0:02:59]}  dxe4 {[%clk 0:02:58]} 4. Ng5 {[%clk 0:02:59]}  Nf6 {[%clk 0:02:50]} 5. Nc3 {[%clk 0:02:58]}  Bg4 {[%clk 0:02:43]} 6. Qd2 {[%clk 0:02:55]}  exd3 {[%clk 0:02:36]} 7. Bxd3 {[%clk 0:02:53]}  e6 {[%clk 0:02:35]} 8. h3 {[%clk 0:02:51]}  Bh5 {[%clk 0:02:34]} 9. g4 {[%clk 0:02:47]}  Bg6 {[%clk 0:02:34]} 10. Bxg6 {[%clk 0:02:47]}  Qxd2+ {[%clk 0:02:32]} 11. Bxd2 {[%clk 0:02:47]}  hxg6 {[%clk 0:02:33]} 12. O-O-O {[%clk 0:02:46]}  Nbd7 {[%clk 0:02:32]} 13. f4 {[%clk 0:02:41]}  Be7 {[%clk 0:02:29]} 14. f5 {[%clk 0:02:37]}  gxf5 {[%clk 0:02:09]} 15. gxf5 {[%clk 0:02:36]}  e5 {[%clk 0:02:10]} 16. h4 {[%clk 0:02:29]}  Nd5 {[%clk 0:01:59]} 17. Nce4 {[%clk 0:02:23]}  N7f6 {[%clk 0:01:36]} 18. c4 {[%clk 0:02:09]}  Nxe4 {[%clk 0:01:36]} 19. Nxe4 {[%clk 0:02:09]}  Nf6 {[%clk 0:01:36]} 20. Ng5 {[%clk 0:02:06]}  Ng4 {[%clk 0:01:34]} 21. Rde1 {[%clk 0:01:58]}  Nf2 {[%clk 0:01:27]} 22. Rxe5 {[%clk 0:01:20]}  Nd3+ {[%clk 0:01:25]} 0-1


[Site "https://www.chess.com"]

[Event "Titled Tuesday Blitz March 29 Early 2022"]
[White "Gaehwiler, Gabriel"]
[Black "Toncheva, Nadya"]
[WhiteFideId "1314530"]
[BlackFideId "2924056"]
[WhiteElo "2383"]
[BlackElo "1884"]
[Result "0-1"]
[Round "01"]
[TimeControl "180+1"]
[Date "2022.03.30"]
[WhiteClock "0:00:09"]
[BlackClock "0:00:07"]

1. d4 {[%clk 0:03:00]}  Nf6 {[%clk 0:02:59]} 2. Nf3 {[%clk 0:02:58]}  e6 {[%clk 0:02:57]} 3. c4 {[%clk 0:02:57]}  c5 {[%clk 0:02:57]} 4. g3 {[%clk 0:02:56]}  cxd4 {[%clk 0:02:54]} 5. Nxd4 {[%clk 0:02:57]}  a6 {[%clk 0:02:53]} 6. Bg2 {[%clk 0:02:57]}  Qc7 {[%clk 0:02:54]} 7. O-O {[%clk 0:02:53]}  Be7 {[%clk 0:02:53]} 8. Nc3 {[%clk 0:02:53]}  Nc6 {[%clk 0:02:53]} 9. Nc2 {[%clk 0:02:46]}  b6 {[%clk 0:02:52]} 10. Bf4 {[%clk 0:02:45]}  d6 {[%clk 0:02:37]} 11. Rc1 {[%clk 0:02:33]}  Bb7 {[%clk 0:02:37]} 12. Qd2 {[%clk 0:02:32]}  O-O {[%clk 0:02:35]} 13. Rfd1 {[%clk 0:02:32]}  Rfd8 {[%clk 0:02:35]} 14. b3 {[%clk 0:02:30]}  Rac8 {[%clk 0:02:34]} 15. Ne3 {[%clk 0:02:22]}  Qb8 {[%clk 0:02:25]} 16. Bg5 {[%clk 0:02:15]}  h6 {[%clk 0:02:12]} 17. Bxf6 {[%clk 0:02:04]}  Bxf6 {[%clk 0:02:13]} 18. Ng4 {[%clk 0:02:01]}  Be7 {[%clk 0:02:02]} 19. h4 {[%clk 0:01:55]}  Ne5 {[%clk 0:01:44]} 20. Qf4 {[%clk 0:01:40]}  Nxg4 {[%clk 0:01:39]} 21. Qxg4 {[%clk 0:01:40]}  Bxg2 {[%clk 0:01:38]} 22. Kxg2 {[%clk 0:01:40]}  b5 {[%clk 0:01:29]} 23. cxb5 {[%clk 0:01:33]}  axb5 {[%clk 0:01:28]} 24. Qb4 {[%clk 0:01:23]}  Rc5 {[%clk 0:01:13]} 25. Ne4 {[%clk 0:01:02]}  Qa8 {[%clk 0:01:10]} 26. f3 {[%clk 0:00:43]}  Rxc1 {[%clk 0:01:00]} 27. Rxc1 {[%clk 0:00:44]}  d5 {[%clk 0:01:00]} 28. Qxe7 {[%clk 0:00:38]}  dxe4 {[%clk 0:01:00]} 29. Rc2 {[%clk 0:00:32]}  Qd5 {[%clk 0:00:47]} 30. Qc5 {[%clk 0:00:26]}  exf3+ {[%clk 0:00:41]} 31. exf3 {[%clk 0:00:26]}  Qd1 {[%clk 0:00:42]} 32. Qf2 {[%clk 0:00:21]}  b4 {[%clk 0:00:36]} 33. Re2 {[%clk 0:00:20]}  Qb1 {[%clk 0:00:32]} 34. Rb2 {[%clk 0:00:19]}  Qc1 {[%clk 0:00:27]} 35. Rc2 {[%clk 0:00:19]}  Qa1 {[%clk 0:00:26]} 36. Rd2 {[%clk 0:00:20]}  Ra8 {[%clk 0:00:25]} 37. Qe2 {[%clk 0:00:20]}  Qb1 {[%clk 0:00:24]} 38. Rb2 {[%clk 0:00:20]}  Qc1 {[%clk 0:00:24]} 39. Rc2 {[%clk 0:00:20]}  Qa1 {[%clk 0:00:20]} 40. Qd2 {[%clk 0:00:20]}  Qb1 {[%clk 0:00:16]} 41. Kh2 {[%clk 0:00:20]}  Qa1 {[%clk 0:00:15]} 42. Rb2 {[%clk 0:00:21]}  Qf1 {[%clk 0:00:15]} 43. Qe2 {[%clk 0:00:20]}  Qc1 {[%clk 0:00:13]} 44. Kg2 {[%clk 0:00:20]}  Rd8 {[%clk 0:00:13]} 45. Rc2 {[%clk 0:00:20]}  Qa1 {[%clk 0:00:13]} 46. Rd2 {[%clk 0:00:21]}  Ra8 {[%clk 0:00:13]} 47. h5 {[%clk 0:00:21]}  Rc8 {[%clk 0:00:13]} 48. Rc2 {[%clk 0:00:21]}  Rd8 {[%clk 0:00:13]} 49. Rd2 {[%clk 0:00:21]}  Rc8 {[%clk 0:00:14]} 50. Qd3 {[%clk 0:00:21]}  Rc1 {[%clk 0:00:12]} 51. Qd8+ {[%clk 0:00:21]}  Kh7 {[%clk 0:00:12]} 52. Qd3+ {[%clk 0:00:21]}  Kg8 {[%clk 0:00:12]} 53. Kh3 {[%clk 0:00:19]}  Rh1+ {[%clk 0:00:11]} 54. Kg4 {[%clk 0:00:20]}  Qe5 {[%clk 0:00:07]} 55. Qe4 {[%clk 0:00:09]}  f5+ {[%clk 0:00:07]} 0-1


[Site "https://www.chess.com"]

[Event "Titled Tuesday Blitz March 29 Early 2022"]
[White "Garv Gaur"]
[Black "Kobalia, Mikhail"]
[WhiteFideId "45030839"]
[BlackFideId "4119150"]
[WhiteElo "1950"]
[BlackElo "2667"]
[Result "1-0"]
[Round "01"]
[TimeControl "180+1"]
[Date "2022.03.29"]
[WhiteClock "0:01:03"]
[BlackClock "0:00:07"]

1. d4 {[%clk 0:03:00]}  Nf6 {[%clk 0:02:55]} 2. Nf3 {[%clk 0:03:01]}  g6 {[%clk 0:02:54]} 3. c4 {[%clk 0:03:01]}  Bg7 {[%clk 0:02:55]} 4. g3 {[%clk 0:03:01]}  O-O {[%clk 0:02:55]} 5. Bg2 {[%clk 0:03:02]}  d6 {[%clk 0:02:55]} 6. O-O {[%clk 0:03:02]}  Nc6 {[%clk 0:02:56]} 7. Nc3 {[%clk 0:03:02]}  Bd7 {[%clk 0:02:55]} 8. h3 {[%clk 0:03:01]}  a6 {[%clk 0:02:53]} 9. e4 {[%clk 0:03:01]}  Qc8 {[%clk 0:02:53]} 10. Kh2 {[%clk 0:03:01]}  e5 {[%clk 0:02:53]} 11. Be3 {[%clk 0:02:58]}  Re8 {[%clk 0:02:42]} 12. Re1 {[%clk 0:02:57]}  Nh5 {[%clk 0:02:33]} 13. dxe5 {[%clk 0:02:43]}  dxe5 {[%clk 0:02:31]} 14. Nd5 {[%clk 0:02:43]}  Nf6 {[%clk 0:02:12]} 15. Ng5 {[%clk 0:02:35]}  h6 {[%clk 0:02:08]} 16. Nf3 {[%clk 0:02:35]}  Nxe4 {[%clk 0:02:04]} 17. Qc2 {[%clk 0:02:20]}  f5 {[%clk 0:01:58]} 18. Nd2 {[%clk 0:02:17]}  Nd6 {[%clk 0:01:44]} 19. Rad1 {[%clk 0:02:05]}  g5 {[%clk 0:01:42]} 20. f4 {[%clk 0:01:59]}  gxf4 {[%clk 0:01:36]} 21. gxf4 {[%clk 0:01:58]}  e4 {[%clk 0:01:36]} 22. c5 {[%clk 0:01:55]}  Kh7 {[%clk 0:01:34]} 23. cxd6 {[%clk 0:01:54]}  Rg8 {[%clk 0:01:10]} 24. dxc7 {[%clk 0:01:49]}  Qf8 {[%clk 0:01:06]} 25. Nc4 {[%clk 0:01:43]}  Be6 {[%clk 0:01:04]} 26. Ncb6 {[%clk 0:01:40]}  Re8 {[%clk 0:01:03]} 27. Qc5 {[%clk 0:01:24]}  Qf7 {[%clk 0:01:01]} 28. Rg1 {[%clk 0:01:16]}  Bxb2 {[%clk 0:01:00]} 29. Nc4 {[%clk 0:01:10]}  Bxd5 {[%clk 0:00:52]} 30. Rxd5 {[%clk 0:01:11]}  Bh8 {[%clk 0:00:35]} 31. Nd6 {[%clk 0:01:10]}  Qg6 {[%clk 0:00:12]} 32. Nxe8 {[%clk 0:01:08]}  Rxe8 {[%clk 0:00:07]} 33. Bxe4 {[%clk 0:01:03]} 1-0


[Site "https://www.chess.com"]